bitfinex/quotes_SOLUSD_20241220
["timestamp","ask_amount","ask_price","bid_price","bid_amount"]
[1734668767597,48.54483029,197.04,196.97,24.76794629]
[1734668767794,24.76794629,197.02,196.95,24.76794629]
[1734668767994,24.76794629,196.99,196.92,24.76794629]
[1734668768292,23.776884,196.98,196.92,24.76794629]
[1734668769203,24.76794629,197.02,196.95,24.76794629]
[1734668769401,23.776884,197.01,196.95,24.76794629]
[1734668769697,23.776884,197.01,196.96,24.76794629]
[1734668769872,23.776884,197.03,196.97,24.76794629]
[1734668770201,23.776884,197.03,196.98,24.76794629]
[1734668770501,24.76794629,197.06,196.99,24.76794629]
[1734668770793,0.6230473,197.07,197.01,24.76794629]
[1734668770993,0.6230473,197.07,197.01,15.46730114]
[1734668771192,0.6230473,197.07,197.0,15.46730114]
[1734668771497,0.6230473,197.07,197.01,15.46730114]
[1734668771808,0.6230473,197.07,197.04,15.46730114]
[1734668771970,0.6230473,197.07,197.03,15.46730114]
[1734668776504,0.6230473,197.07,197.04,15.46730114]
[1734668776686,0.6230473,197.07,197.03,15.46730114]
[1734668777600,0.6230473,197.07,197.0,1.6271]
[1734668777781,0.6230473,197.07,197.06,15.46730114]
[1734668777982,0.6230473,197.07,197.05,15.46730114]
[1734668778303,0.6230473,197.07,197.06,15.46730114]
[1734668778979,0.6230473,197.07,197.03,20.0]
[1734668779180,0.6230473,197.07,197.06,15.46730114]
[1734668782888,0.6230473,197.07,197.05,15.46730114]
[1734668783703,12.6795,197.17,197.05,15.46730114]
[1734668783704,2.04089368,197.21,197.09,20.0]
[1734668783895,20.34492983,197.29,197.14,20.0]
[1734668784103,20.34492983,197.29,197.1,1.5515]
[1734668784104,11.30120046,197.29,197.17,15.46730114]
[1734668784287,11.30120046,197.29,197.1,17.01880114]
[1734668784288,15.46730114,197.25,197.15,20.0]
[1734668784487,16.10261816,197.3,197.15,20.0]
[1734668784686,15.46730114,197.26,197.15,20.0]
[1734668784890,15.46730114,197.22,197.12,6.038]
[1734668785094,15.46730114,197.21,197.14,15.46730114]
[1734668785311,15.46730114,197.24,197.16,15.46730114]
[1734668785473,15.46730114,197.22,197.12,6.038]
[1734668785679,15.46730114,197.2,197.12,15.46730114]
[1734668786004,15.46730114,197.18,197.11,20.0]
[1734668786201,15.46730114,197.17,197.1,15.46730114]
[1734668786395,15.46730114,197.16,197.08,6.3786]
[1734668786605,15.46730114,197.14,197.07,15.46730114]
[1734668786780,15.46730114,197.12,197.05,15.46730114]
[1734668787094,15.46730114,197.11,197.04,15.46730114]
[1734668787299,15.46730114,197.13,197.06,15.46730114]
[1734668787797,15.46730114,197.08,197.01,17.00660114]
[1734668787996,15.46730114,197.07,197.0,15.46730114]
[1734668788202,15.46730114,197.06,196.99,15.46730114]
[1734668788404,15.46730114,197.07,197.0,15.46730114]
[1734668788801,39.24418514,197.06,196.99,15.46730114]
[1734668789109,6.187,197.1,197.0,15.46730114]
[1734668789407,15.46730114,197.06,196.99,15.46730114]
[1734668789992,6.5865,197.15,197.05,15.46730114]
[1734668790298,6.5865,197.15,197.0,16.22866563]
[1734668790299,15.46730114,197.1,197.03,35.46730114]
[1734668790506,15.46730114,197.11,197.04,15.46730114]
[1734668790703,15.46730114,197.1,197.03,35.46730114]
[1734668790906,6.5865,197.15,197.05,15.46730114]
[1734668791212,24.73712186,197.1,197.03,24.73712186]
[1734668791585,24.73712186,197.1,197.02,24.73712186]
[1734668792210,6.2045,197.2,197.09,24.73712186]
[1734668792386,30.94162186,197.2,197.12,24.73712186]
[1734668792590,24.73712186,197.17,197.1,24.73712186]
[1734668792787,6.2045,197.2,197.08,24.73712186]
[1734668793009,6.2045,197.2,197.07,20.0]
[1734668793189,6.2045,197.2,197.12,24.73712186]
[1734668793394,24.73712186,197.19,197.12,24.73712186]
[1734668793912,24.73712186,197.18,197.11,24.73712186]
[1734668794512,24.73712186,197.17,197.09,24.73712186]
[1734668794909,24.73712186,197.17,197.1,24.73712186]
[1734668795288,23.776884,197.19,197.12,24.73712186]
[1734668795692,48.51400586,197.19,197.12,24.73712186]
[1734668795886,24.73712186,197.18,197.11,24.73712186]
[1734668796210,24.73712186,197.17,197.1,24.73712186]
[1734668796512,24.73712186,197.18,197.12,24.73712186]
[1734668796715,24.73712186,197.22,197.14,24.73712186]
[1734668797026,24.73712186,197.23,197.16,24.73712186]
[1734668797193,25.36016916,197.27,197.19,24.73712186]
[1734668797395,0.6230473,197.27,197.2,24.73712186]
[1734668797596,25.36016916,197.27,197.19,24.73712186]
[1734668797906,24.73712186,197.26,197.19,24.73712186]
[1734668798519,0.6230473,197.27,197.25,24.73712186]
[1734668798825,0.6230473,197.27,197.24,24.73712186]
[1734668799012,0.6230473,197.27,197.23,24.73712186]
[1734668799200,0.6230473,197.27,197.24,24.73712186]
[1734668801324,25.36016916,197.27,197.2,24.73712186]
[1734668801634,0.6230473,197.27,197.23,24.73712186]
[1734668801928,0.6230473,197.27,197.24,24.73712186]
[1734668802131,0.6230473,197.27,197.23,24.73712186]
[1734668802701,0.6230473,197.27,197.26,24.73712186]
[1734668802907,0.6230473,197.27,197.25,24.73712186]
[1734668804532,0.6230473,197.27,197.22,24.73712186]
[1734668804706,0.6230473,197.27,197.23,24.73712186]
[1734668805631,0.6230473,197.27,197.24,24.73712186]
[1734668806316,0.6230473,197.27,197.26,24.73712186]
[1734668807922,4.73e-05,197.27,197.26,24.73712186]
[1734668808240,4.73e-05,197.27,197.26,37.41072186]
[1734668808445,1.5052,197.39,197.16,6.0728]
[1734668808652,24.73712186,197.34,197.27,24.73712186]
[1734668808815,24.73712186,197.33,197.25,24.73712186]
[1734668810330,24.73712186,197.32,197.25,24.73712186]
[1734668811516,24.73712186,197.36,197.29,24.73712186]
[1734668812237,24.73712186,197.35,197.28,24.73712186]
[1734668813943,24.73712186,197.34,197.27,24.73712186]
[1734668814144,24.73712186,197.35,197.28,24.73712186]
[1734668814626,24.73712186,197.34,197.28,24.73712186]
[1734668814827,24.73712186,197.34,197.27,24.73712186]
[1734668815029,15.4278033,197.34,197.27,15.4278033]
[1734668815221,15.4278033,197.34,197.28,15.4278033]
[1734668815548,1.5052,197.39,197.33,15.4278033]
[1734668816315,1.5052,197.39,197.34,15.4278033]
[1734668816645,1.5052,197.39,197.33,15.4278033]
[1734668817946,15.4278033,197.37,197.3,15.4278033]
[1734668818122,39.2046873,197.36,197.29,15.4278033]
[1734668818323,15.4278033,197.37,197.3,15.4278033]
[1734668818522,23.776884,197.36,197.3,15.4278033]
[1734668820344,23.776884,197.37,197.31,15.4278033]
[1734668820548,23.776884,197.36,197.31,15.4278033]
[1734668820865,15.4278033,197.32,197.24,15.4278033]
[1734668821065,39.2046873,197.31,197.24,15.4278033]
[1734668821767,23.776884,197.31,197.25,15.4278033]
[1734668821942,23.776884,197.31,197.26,15.4278033]
[1734668822144,23.776884,197.32,197.26,15.4278033]
[1734668822440,15.4278033,197.33,197.26,15.4278033]
[1734668822836,1.5052,197.39,197.2,29.6412033]
[1734668822837,15.4278033,197.37,197.3,15.4278033]
[1734668823051,16.9330033,197.39,197.32,15.4278033]
[1734668823568,15.4278033,197.38,197.31,15.4278033]
[1734668824149,23.776884,197.37,197.31,15.4278033]
[1734668824375,39.2046873,197.37,197.3,15.4278033]
[1734668824759,39.2046873,197.35,197.28,15.4278033]
[1734668825273,15.4278033,197.34,197.27,15.4278033]
[1734668825451,15.4278033,197.32,197.25,15.4278033]
[1734668825662,15.4278033,197.29,197.22,15.4278033]
[1734668826060,15.4278033,197.3,197.23,15.4278033]
[1734668826852,15.4278033,197.3,197.24,15.4278033]
[1734668827056,48.46593709,197.31,197.24,24.68905309]
[1734668827649,24.68905309,197.3,197.23,24.68905309]
[1734668829550,24.68905309,197.3,197.24,24.68905309]
[1734668830488,24.68905309,197.3,197.23,24.68905309]
[1734668831756,24.68905309,197.3,197.18,24.68905309]
[1734668831757,24.68905309,197.24,197.18,24.68905309]
[1734668831956,24.68905309,197.23,197.16,24.68905309]
[1734668832368,24.68905309,197.23,197.17,24.68905309]
[1734668832571,24.68905309,197.24,197.17,24.68905309]
[1734668834556,24.68905309,197.24,197.18,24.68905309]
[1734668835593,1.6213,197.29,197.19,24.68905309]
[1734668835594,24.68905309,197.25,197.19,24.68905309]
[1734668837286,23.776884,197.28,197.17,24.68905309]
[1734668837287,24.68905309,197.23,197.17,24.68905309]
[1734668837480,24.68905309,197.21,197.15,24.68905309]
[1734668837854,24.68905309,197.2,197.13,24.68905309]
[1734668838181,24.68905309,197.2,197.1,20.8623]
[1734668838182,24.68905309,197.18,197.12,24.68905309]
[1734668838386,24.68905309,197.18,197.11,24.68905309]
[1734668838890,23.776884,197.17,197.11,24.68905309]
[1734668839189,24.68905309,197.18,197.12,24.68905309]
[1734668842391,24.68905309,197.21,197.14,24.68905309]
[1734668843288,24.68905309,197.2,197.14,24.68905309]
[1734668843505,24.68905309,197.33,197.22,20.0]
[1734668843792,32.39915309,197.34,197.26,24.68905309]
[1734668844098,24.68905309,197.32,197.24,24.68905309]
[1734668844288,24.68905309,197.31,197.24,24.68905309]
[1734668844477,24.68905309,197.32,197.24,24.68905309]
[1734668844679,24.68905309,197.28,197.21,24.68905309]
[1734668844878,24.68905309,197.26,197.15,15.85877269]
[1734668845076,24.68905309,197.25,197.18,24.68905309]
[1734668845874,24.68905309,197.23,197.16,24.68905309]
[1734668846083,24.68905309,197.22,197.15,24.68905309]
[1734668846389,24.68905309,197.23,197.16,24.68905309]
[1734668847304,24.68905309,197.23,197.11,12.6832]
[1734668847600,24.68905309,197.2,197.13,24.68905309]
[1734668847795,23.776884,197.18,197.12,24.68905309]
[1734668847977,48.46593709,197.18,197.11,24.68905309]
[1734668848310,24.68905309,197.17,197.1,24.68905309]
[1734668848602,48.46593709,197.16,197.09,24.68905309]
[1734668848911,24.68905309,197.15,197.08,24.68905309]
[1734668849077,39.23272852,197.16,197.09,15.45584452]
[1734668850377,23.776884,197.16,197.1,15.45584452]
[1734668850780,15.45584452,197.19,197.12,15.45584452]
[1734668851177,23.776884,197.18,197.13,15.45584452]
[1734668851580,23.776884,197.19,197.13,15.45584452]
[1734668851799,39.23272852,197.19,197.12,15.45584452]
[1734668854115,23.776884,197.19,197.13,15.45584452]
[1734668854303,23.776884,197.2,197.15,15.45584452]
[1734668854638,23.26024452,197.24,197.17,15.45584452]
[1734668855706,15.45584452,197.22,197.15,15.45584452]
[1734668856114,39.23272852,197.21,197.14,15.45584452]
[1734668856287,15.45584452,197.19,197.12,15.45584452]
[1734668857613,15.45584452,197.2,197.13,15.45584452]
[1734668858303,39.23272852,197.19,197.12,15.45584452]
[1734668858514,15.45584452,197.19,197.12,15.45584452]
[1734668858713,23.776884,197.18,197.12,15.45584452]
[1734668859019,23.776884,197.21,197.16,15.45584452]
[1734668859622,23.776884,197.21,197.15,15.45584452]
[1734668862631,15.45584452,197.24,197.17,15.45584452]
[1734668862802,15.45584452,197.25,197.18,15.45584452]
[1734668864027,23.776884,197.24,197.18,15.45584452]
[1734668866730,15.45584452,197.23,197.16,15.45584452]
[1734668867134,23.776884,197.24,197.18,15.45584452]
[1734668867336,15.45584452,197.27,197.2,15.45584452]
[1734668867501,15.45584452,197.28,197.21,15.45584452]
[1734668867826,15.45584452,197.28,197.22,15.45584452]
[1734668868127,15.45584452,197.28,197.21,15.45584452]
[1734668868503,23.776884,197.27,197.21,15.45584452]
[1734668870630,23.776884,197.28,197.22,15.45584452]
[1734668870930,39.23272852,197.28,197.21,15.45584452]
[1734668871129,15.45584452,197.28,197.21,15.45584452]
[1734668871316,15.45584452,197.31,197.24,15.45584452]
[1734668871519,15.45584452,197.32,197.25,15.45584452]
[1734668872242,15.45584452,197.31,197.24,15.45584452]
[1734668874020,15.45584452,197.25,197.18,15.45584452]
[1734668874327,15.45584452,197.24,197.17,15.45584452]
[1734668874724,23.776884,197.33,197.18,15.45584452]
[1734668874925,15.45584452,197.24,197.18,15.45584452]
[1734668875506,15.45584452,197.24,197.17,15.45584452]
[1734668875707,15.45584452,197.23,197.17,15.45584452]
[1734668876320,15.45584452,197.22,197.15,15.45584452]
[1734668876520,15.45584452,197.23,197.16,15.45584452]
[1734668876719,15.45584452,197.24,197.17,15.45584452]
[1734668876936,15.45584452,197.26,197.19,15.45584452]
[1734668877236,15.45584452,197.24,197.18,15.45584452]
[1734668878427,15.45584452,197.24,197.17,15.45584452]
[1734668878729,15.45584452,197.22,197.15,15.45584452]
[1734668879034,15.45584452,197.21,197.14,16.96074452]
[1734668879235,15.45584452,197.22,197.15,15.45584452]
[1734668879413,15.45584452,197.22,197.16,15.45584452]
[1734668879928,15.45584452,197.22,197.15,15.45584452]
[1734668881628,14.2041,197.26,197.13,6.0109]
[1734668881629,15.45584452,197.21,197.13,15.45584452]
[1734668882421,15.45584452,197.22,197.15,15.45584452]
[1734668882629,15.45584452,197.23,197.16,15.45584452]
[1734668883135,6.2036,197.24,197.18,15.45584452]
[1734668883435,15.45584452,197.25,197.18,15.45584452]
[1734668883632,15.45584452,197.24,197.16,15.45584452]
[1734668883938,15.45584452,197.25,197.18,15.45584452]
[1734668884322,15.45584452,197.24,197.17,15.45584452]
[1734668885016,15.45584452,197.22,197.15,15.45584452]
[1734668885230,15.45584452,197.23,197.16,15.45584452]
[1734668885856,15.45584452,197.23,197.17,15.45584452]
[1734668886138,15.45584452,197.24,197.17,15.45584452]
[1734668886637,15.45584452,197.23,197.16,15.45584452]
[1734668886934,15.45584452,197.22,197.15,15.45584452]
[1734668887159,15.45584452,197.21,197.15,15.45584452]
[1734668887437,15.45584452,197.22,197.15,15.45584452]
[1734668888226,15.45584452,197.23,197.16,15.45584452]
[1734668890676,15.45584452,197.17,197.09,1.5665]
[1734668890955,15.45584452,197.16,197.1,15.45584452]
[1734668891325,15.45584452,197.16,197.09,15.45584452]
[1734668891933,15.45584452,197.14,197.08,15.45584452]
[1734668892128,15.45584452,197.13,197.06,15.45584452]
[1734668892335,15.45584452,197.12,197.05,15.45584452]
[1734668893235,15.45584452,197.12,197.06,15.45584452]
[1734668895056,15.45584452,197.14,197.07,15.45584452]
[1734668895573,15.45584452,197.13,197.07,15.45584452]
[1734668896153,3.54539646,197.16,197.08,15.45584452]
[1734668896154,39.23272852,197.15,197.08,15.45584452]
[1734668896370,15.45584452,197.16,197.1,15.45584452]
[1734668896573,15.45584452,197.18,197.11,15.45584452]
[1734668896758,1.6646,197.21,197.14,15.45584452]
[1734668896759,17.12044452,197.21,197.14,15.45584452]
[1734668897134,15.45584452,197.22,197.15,15.45584452]
[1734668897453,6.1697,197.25,197.17,15.45584452]
[1734668897659,15.45584452,197.24,197.17,15.45584452]
[1734668898137,15.45584452,197.23,197.16,15.45584452]
[1734668899363,15.45584452,197.24,197.17,15.45584452]
[1734668899538,23.776884,197.23,197.17,15.45584452]
[1734668900258,39.23272852,197.23,197.16,15.45584452]
[1734668901671,15.45584452,197.22,197.15,15.45584452]
[1734668902868,15.45584452,197.22,197.11,0.76077868]
[1734668902869,15.45584452,197.18,197.11,35.45584452]
[1734668903176,15.45584452,197.19,197.12,15.45584452]
[1734668904848,15.45584452,197.19,197.13,15.45584452]
[1734668905066,15.45584452,197.19,197.12,15.45584452]
[1734668905272,15.45584452,197.18,197.11,15.45584452]
[1734668905565,15.45584452,197.19,197.12,15.45584452]
[1734668906064,15.45584452,197.2,197.13,15.45584452]
[1734668906562,23.776884,197.19,197.13,15.45584452]
[1734668906961,23.776884,197.19,197.14,15.45584452]
[1734668907153,23.776884,197.2,197.14,15.45584452]
[1734668908988,39.23272852,197.2,197.13,15.45584452]
[1734668910473,15.45584452,197.19,197.12,15.45584452]
[1734668911074,39.23272852,197.2,197.13,15.45584452]
[1734668912478,48.71275366,197.33,197.14,15.45584452]
[1734668912771,15.45584452,197.28,197.21,15.45584452]
[1734668912951,15.45584452,197.28,197.22,15.45584452]
[1734668913146,21.48294452,197.3,197.23,15.45584452]
[1734668913357,15.45584452,197.3,197.23,15.45584452]
[1734668913559,15.45584452,197.29,197.22,15.45584452]
[1734668914855,15.45584452,197.28,197.21,15.45584452]
[1734668915462,15.45584452,197.3,197.23,15.45584452]
[1734668915671,15.45584452,197.28,197.21,15.45584452]
[1734668915878,15.45584452,197.26,197.2,15.45584452]
[1734668916253,15.45584452,197.24,197.17,15.45584452]
[1734668917676,15.45584452,197.24,197.18,15.45584452]
[1734668917850,15.45584452,197.25,197.18,15.45584452]
[1734668918682,15.45584452,197.26,197.19,15.45584452]
[1734668918879,15.45584452,197.26,197.2,15.45584452]
[1734668919069,23.776884,197.27,197.21,15.45584452]
[1734668920092,23.776884,197.27,197.2,15.45584452]
[1734668920261,15.45584452,197.26,197.19,15.45584452]
[1734668920458,39.23272852,197.27,197.2,15.45584452]
[1734668923001,15.45584452,197.25,197.17,15.45584452]
[1734668923202,15.45584452,197.22,197.15,15.45584452]
[1734668923379,15.45584452,197.21,197.14,15.45584452]
[1734668923870,15.45584452,197.22,197.15,15.45584452]
[1734668924569,15.45584452,197.22,197.16,15.45584452]
[1734668925675,15.45584452,197.22,197.15,15.45584452]
[1734668928159,15.45584452,197.22,197.16,15.45584452]
[1734668928689,15.45584452,197.22,197.15,15.45584452]
[1734668928883,23.776884,197.27,197.19,15.45584452]
[1734668929089,39.23272852,197.24,197.17,15.45584452]
[1734668929270,15.45584452,197.23,197.17,15.45584452]
[1734668931894,15.45584452,197.23,197.16,15.45584452]
[1734668932784,15.45584452,197.23,197.14,20.0]
[1734668932785,15.45584452,197.2,197.14,35.45584452]
[1734668932991,15.45584452,197.2,197.14,20.0]
[1734668933178,15.45584452,197.2,197.13,15.45584452]
[1734668933691,15.45584452,197.19,197.12,15.45584452]
[1734668934086,15.45584452,197.18,197.12,15.45584452]
[1734668936193,15.45584452,197.17,197.11,15.45584452]
[1734668937277,15.45584452,197.15,197.06,6.4546]
[1734668937590,15.45584452,197.13,197.06,21.91044452]
[1734668937771,15.45584452,197.13,197.06,15.45584452]
[1734668937974,15.45584452,197.1,197.04,15.45584452]
[1734668940291,15.45584452,197.09,197.02,15.45584452]
[1734668940687,15.45584452,197.11,197.04,15.45584452]
[1734668941187,15.45584452,197.13,197.06,15.45584452]
[1734668941386,23.776884,197.12,197.07,15.45584452]
[1734668943315,15.45584452,197.18,197.11,15.45584452]
[1734668943481,15.45584452,197.19,197.13,15.45584452]
[1734668943676,15.45584452,197.19,197.12,15.45584452]
[1734668943881,15.45584452,197.17,197.11,15.45584452]
[1734668944678,23.776884,197.17,197.12,15.45584452]
[1734668944879,15.45584452,197.2,197.14,15.45584452]
[1734668946197,23.776884,197.19,197.14,15.45584452]
[1734668946423,23.776884,197.19,197.13,15.45584452]
[1734668946592,23.776884,197.19,197.14,15.45584452]
[1734668946912,23.776884,197.2,197.14,15.45584452]
[1734668947678,23.776884,197.2,197.13,15.45584452]
[1734668947879,39.23272852,197.2,197.13,15.45584452]
[1734668949009,15.45584452,197.19,197.12,15.45584452]
[1734668949209,23.776884,197.18,197.12,15.45584452]
[1734668950613,7.8289,197.24,197.14,15.45584452]
[1734668950917,15.45584452,197.25,197.18,15.45584452]
[1734668951281,15.45584452,197.24,197.17,15.45584452]
[1734668951614,15.45584452,197.23,197.17,15.45584452]
[1734668951804,15.45584452,197.23,197.16,15.45584452]
[1734668952114,23.776884,197.22,197.16,15.45584452]
[1734668952318,15.45584452,197.21,197.14,15.45584452]
[1734668952616,23.776884,197.22,197.15,15.45584452]
[1734668952617,39.23272852,197.22,197.15,15.45584452]
[1734668954120,23.776884,197.22,197.16,15.45584452]
[1734668954591,23.776884,197.22,197.17,15.45584452]
[1734668955723,15.45584452,197.21,197.14,15.45584452]
[1734668956132,23.776884,197.2,197.14,15.45584452]
[1734668956628,39.23272852,197.2,197.13,35.45584452]
[1734668957127,23.776884,197.18,197.13,20.0]
[1734668957629,39.23272852,197.18,197.11,15.45584452]
[1734668957785,39.23272852,197.15,197.09,1.6656]
[1734668957991,23.776884,197.15,197.09,17.12144452]
[1734668958719,39.23272852,197.15,197.09,1.6656]
[1734668960008,39.23272852,197.15,197.08,15.45584452]
[1734668960213,15.45584452,197.14,197.07,15.45584452]
[1734668960612,23.776884,197.13,197.07,15.45584452]
[1734668961327,39.23272852,197.13,197.06,15.45584452]
[1734668962899,23.776884,197.1,197.04,16.95614452]
[1734668963795,23.776884,197.1,196.99,7.24133785]
[1734668963796,15.45584452,197.08,197.02,15.45584452]
[1734668963996,23.776884,197.1,197.03,15.45584452]
[1734668964233,23.776884,197.08,197.03,15.45584452]
[1734668965001,39.23272852,197.08,197.02,15.45584452]
[1734668965598,39.23272852,197.08,197.01,15.45584452]
[1734668966226,15.45584452,197.07,197.0,15.45584452]
[1734668966435,23.776884,197.06,197.0,15.45584452]
[1734668966638,23.776884,197.06,197.03,15.45584452]
[1734668966838,23.776884,197.06,197.02,15.45584452]
[1734668966994,23.776884,197.07,197.02,15.45584452]
[1734668967833,23.71587737,197.07,197.02,15.45584452]
[1734668968508,15.45584452,197.09,197.02,15.45584452]
[1734668970236,39.23272852,197.1,197.04,15.45584452]
[1734668970533,23.776884,197.1,197.04,15.45584452]
[1734668971046,15.45584452,197.11,197.04,15.45584452]
[1734668971513,1.5731,197.12,197.03,15.45584452]
[1734668971514,15.45584452,197.1,197.03,15.45584452]
[1734668972034,23.776884,197.09,197.03,15.45584452]
[1734668972245,15.45584452,197.1,197.04,15.45584452]
[1734668972246,23.776884,197.1,197.04,15.45584452]
[1734668972930,23.776884,197.1,197.05,15.45584452]
[1734668973120,23.776884,197.11,197.05,15.45584452]
[1734668974329,23.776884,197.11,197.06,15.45584452]
[1734668974653,23.776884,197.12,197.06,15.45584452]
[1734668975530,23.776884,197.12,197.07,15.45584452]
[1734668976134,23.776884,197.13,197.08,15.45584452]
[1734668976518,20.8971,197.22,197.12,15.45584452]
[1734668976832,15.45584452,197.19,197.12,15.45584452]
[1734668977030,15.45584452,197.18,197.11,15.45584452]
[1734668977218,15.45584452,197.16,197.09,15.45584452]
[1734668977651,15.45584452,197.15,197.08,35.45584452]
[1734668978132,23.776884,197.14,197.08,35.45584452]
[1734668978328,23.776884,197.14,197.09,15.45584452]
[1734668978535,23.776884,197.15,197.09,15.45584452]
[1734668978917,23.776884,197.15,197.09,9.89011611]
[1734668979124,8.2205,197.22,197.13,9.89011611]
[1734668979436,9.89011611,197.2,197.13,9.89011611]
[1734668980641,2.01947185,197.25,197.13,9.89011611]
[1734668980963,23.776884,197.21,197.15,15.44382226]
[1734668981138,15.44382226,197.22,197.15,15.44382226]
[1734668981459,15.44382226,197.19,197.13,20.0]
[1734668981653,15.44382226,197.19,197.12,15.44382226]
[1734668981861,15.44382226,197.2,197.13,35.44382226]
[1734668982155,15.44382226,197.22,197.14,15.44382226]
[1734668982657,23.776884,197.21,197.14,15.44382226]
[1734668983163,23.776884,197.19,197.13,35.44382226]
[1734668984128,23.776884,197.19,197.14,15.44382226]
[1734668984349,23.776884,197.2,197.15,15.44382226]
[1734668984561,23.776884,197.21,197.15,15.44382226]
[1734668986156,23.776884,197.22,197.16,15.44382226]
[1734668987243,23.776884,197.22,197.15,15.44382226]
[1734668987449,39.22070626,197.22,197.15,15.44382226]
[1734668989034,23.776884,197.22,197.16,15.44382226]
[1734668990839,39.22070626,197.22,197.15,15.44382226]
[1734668991657,39.22070626,197.22,197.1,28.12772226]
[1734668991658,23.776884,197.16,197.1,15.44382226]
[1734668991851,23.776884,197.16,197.11,15.44382226]
[1734668992557,23.776884,197.17,197.11,15.44382226]
[1734668993659,15.44382226,197.21,197.15,15.44382226]
[1734668993866,23.776884,197.21,197.16,15.44382226]
[1734668994064,15.44382226,197.23,197.17,15.44382226]
[1734668994373,15.44382226,197.25,197.18,15.44382226]
[1734668995839,7.6616,197.26,197.18,15.44382226]
[1734668996079,15.44382226,197.28,197.21,15.44382226]
[1734668996239,15.44382226,197.26,197.19,15.44382226]
[1734668996440,15.44382226,197.25,197.19,15.44382226]
[1734668997383,15.44382226,197.23,197.16,15.44382226]
[1734668997662,23.776884,197.23,197.17,15.44382226]
[1734668998055,39.22070626,197.23,197.16,15.44382226]
[1734668998561,23.776884,197.23,197.17,15.44382226]
[1734668998966,23.776884,197.23,197.19,15.44382226]
[1734668999354,15.44382226,197.25,197.18,15.44382226]
[1734668999355,23.776884,197.24,197.18,15.44382226]
[1734668999864,23.776884,197.24,197.15,2.29765902]
[1734668999865,15.44382226,197.23,197.16,15.44382226]
[1734669000049,23.776884,197.22,197.16,15.44382226]
[1734669000661,23.776884,197.24,197.18,15.44382226]
[1734669000881,39.22070626,197.24,197.17,15.44382226]
[1734669001174,23.776884,197.24,197.18,9.88243138]
[1734669001753,33.65931538,197.24,197.17,9.88243138]
[1734669002279,23.776884,197.24,197.17,9.88243138]
[1734669002464,33.65931538,197.24,197.15,1.537]
[1734669002642,33.65931538,197.24,197.17,9.88243138]
[1734669003169,9.88243138,197.21,197.11,6.5419838]
[1734669003375,33.65931538,197.17,197.11,9.88243138]
[1734669003585,9.88243138,197.14,197.04,30.14663348]
[1734669003884,9.88243138,197.11,197.04,30.14663348]
[1734669004066,23.776884,197.12,197.04,30.14663348]
[1734669004266,33.65931538,197.12,197.04,30.14663348]
[1734669004460,33.65931538,197.12,197.05,9.88243138]
[1734669004869,9.88243138,197.11,197.05,9.88243138]
[1734669005054,9.88243138,197.11,197.04,22.26149075]
[1734669005055,23.776884,197.1,197.04,36.20197351]
[1734669005454,23.776884,197.08,197.03,15.46098276]
[1734669005661,23.776884,197.08,197.02,15.46098276]
[1734669006273,23.776884,197.08,197.03,15.46098276]
[1734669006775,23.776884,197.09,197.03,15.46098276]
[1734669007966,23.776884,197.1,197.06,15.46098276]
[1734669008166,15.46098276,197.14,197.08,15.46098276]
[1734669008678,21.65858276,197.15,197.08,15.46098276]
[1734669008865,6.5285,197.2,197.11,15.46098276]
[1734669009068,15.46098276,197.19,197.12,15.46098276]
[1734669009263,15.46098276,197.17,197.1,15.46098276]
[1734669009860,15.46098276,197.14,197.08,15.46098276]
[1734669010057,15.46098276,197.14,197.07,15.46098276]
[1734669010282,23.776884,197.13,197.07,15.46098276]
[1734669012369,39.23786676,197.13,197.07,15.46098276]
[1734669012569,23.776884,197.13,197.09,15.46098276]
[1734669012769,23.776884,197.14,197.08,15.46098276]
[1734669012972,39.23786676,197.14,197.08,15.46098276]
[1734669013354,39.23786676,197.15,197.08,15.46098276]
[1734669013565,15.46098276,197.14,197.08,15.46098276]
[1734669013761,23.776884,197.13,197.07,15.46098276]
[1734669014071,39.23786676,197.13,197.06,15.46098276]
[1734669016393,23.776884,197.13,197.07,15.46098276]
[1734669016694,23.776884,197.16,197.11,15.46098276]
[1734669017080,23.776884,197.11,197.03,21.6622]
[1734669017261,15.46098276,197.1,197.03,17.12318276]
[1734669017578,23.776884,197.09,197.03,17.12318276]
[1734669017784,23.776884,197.09,197.04,15.46098276]
[1734669018081,23.776884,197.1,197.04,15.46098276]
[1734669019174,23.776884,197.12,197.06,15.46098276]
[1734669019381,15.46098276,197.15,197.08,15.46098276]
[1734669019685,15.46098276,197.14,197.07,15.46098276]
[1734669020189,15.46098276,197.15,197.08,15.46098276]
[1734669020763,23.776884,197.14,197.08,15.46098276]
[1734669020984,15.46098276,197.13,197.06,15.46098276]
[1734669021177,39.23786676,197.12,197.05,15.46098276]
[1734669021376,23.776884,197.12,197.06,15.46098276]
[1734669021590,23.776884,197.13,197.07,15.46098276]
[1734669024590,39.23786676,197.13,197.06,15.46098276]